Cogmind - Beta 13 @@@ ROGUE MODE // 2024.05.24 @ 15:45:07 Player: Holy_Ghost Result: Destroyed by Y-45 Defender with Heavy Assault Rifle Performance ------------- Evolutions (1) 500 Regions Visited (3) 600 Robots Destroyed (38) 190 Value Destroyed (985) 985 Prototype IDs (3) 60 Alien Tech Used (0) 0 Bonus (79) 79 TOTAL SCORE: 2414 Bonus ------- High Alert Combat Kills 79 Cogmind --------- Core Integrity 0/400 Matter 300/300 Energy 100/100 System Corruption 0% Temperature Cool (18) Movement Core (400) Ox7 Location -9/Storage Parts ------- > --- POWER (1) -------- (None) > --- PROPULSION (2) --- (None) > --- UTILITY (3) ------ Large Storage Unit > --- WEAPON (3) ------- Heavy Hammer > --- INVENTORY (15) --- Light Treads Light Treads Wheel Compact Battery (200) Large Matter Pod (150) Particle Cannon Grenade Launcher Plasma Cutter Katana Peak State ------------ > --- POWER ------------ Improved Ion Engine > --- PROPULSION ------- Wheel Armored Wheel > --- UTILITY ---------- Large Storage Unit Power Shielding Light Armor Plating > --- WEAPON ----------- Particle Cannon Light Assault Rifle Light Assault Rifle > --- INVENTORY -------- Light Ion Engine Light Ion Engine Light Treads Light Treads Wheel Compact Battery Improved Assault Rifle Grenade Launcher Plasma Cutter Maul Katana [Rating: 13] Favorites ----------- Power Light Ion Engine Engine Light Ion Engine Propulsion Compact Wheel Leg Aluminum Leg Wheel Compact Wheel Utility Large Storage Unit Storage Large Storage Unit Protection Power Shielding Weapon Light Assault Rifle Energy Cannon Particle Cannon Ballistic Gun Light Assault Rifle Special Weapon Plasma Cutter Impact Weapon Heavy Hammer Build | -11 -10 -9 -9 ------- Run | Yrd Mat Mat Sto Slots Evolved 2 | . . 2 . Power . | . . . . Propulsion . | . . . . Utility 1 | . . 1 . Weapon 1 | . . 1 . Parts Attached 30 | . 7 19 4 Power 4 | . . 3 1 Engine 4 | . . 3 1 Core . | . . . . Reactor . | . . . . Propulsion 9 | . 2 7 . Treads . | . . . . Leg . | . . . . Wheel 9 | . 2 7 . Hover . | . . . . Flight . | . . . . Utility 3 | . 1 2 . Device . | . . . . Storage 1 | . 1 . . Processor . | . . . . Hackware . | . . . . Protection 2 | . . 2 . Artifact . | . . . . Weapon 14 | . 4 7 3 Energy Gun . | . . . . Energy Cannon 3 | . 1 1 1 Ballistic Gun 7 | . 1 6 . Ballistic Cannon . | . . . . Launcher . | . . . . Special Weapon 1 | . 1 . . Impact Weapon 3 | . 1 . 2 Slashing Weapon . | . . . . Piercing Weapon . | . . . . Special Melee Weapon . | . . . . Unidentified Prototypes 1 | . . 1 . Parts Lost 15 | . . 7 8 Power 3 | . . 1 2 Propulsion 6 | . . 4 2 Utility 2 | . . . 2 Weapon 4 | . . 2 2 Highest Loss Streak 8 | . . 3 8 To Critical Strikes . | . . . . Average Slot Usage (%) 87 | . 88 86 88 Engine 11 | . 14 10 9 Wheel 20 | . 24 18 21 Storage 12 | . 17 11 11 Protection 10 | . . 13 17 Energy Cannon 4 | . 5 3 3 Ballistic Gun 24 | . 17 29 17 Impact Weapon 2 | . 4 . 7 Naked Turns . | . . . . Heaviest Build 37 | 10 32 37 37 Greatest Support 32 | 20 32 32 22 Greatest Overweight (x) 12 | . . 12 1 Average Overweight (x) . | . . . 1 Largest Inventory Capacity 15 | . 15 15 15 Average Capacity 13 | . 9 15 15 Most Carried 11 | . 8 11 11 Average Carried 8 | . 7 8 10 Final Capacity 15 | 8 15 15 15 Final Carried 10 | 6 8 10 9 Class Distribution -------------------- 43% | Tank 28% | Mutant 23% | Scavenger-Tank 5% | Scavenger-Mutant Dominant Class ---------------- Mutant | -10/Materials Tank | -9/Materials Mutant | -9/Storage Resources | -11 -10 -9 -9 ----------- Run | Yrd Mat Mat Sto Matter Collected 787 | 195 80 441 71 Remotely . | . . . . Salvage Created 1283 | . 148 1004 131 Parts 86 | . 4 78 4 Haulers Intercepted 2 | . . 2 . Recyclers Shooed 4 | . . 4 . Parts Field Recycled . | . . . . Retrieved Matter . | . . . . Parts Self-Destructed . | . . . . Prevented . | . . . . Kills | -11 -10 -9 -9 ------- Run | Yrd Mat Mat Sto Combat Hostiles Destroyed 32 | . 5 24 3 Guns 25 | . 1 23 1 Cannons 2 | . . 1 1 Classes Destroyed 9 | . 1 8 . Builder 1 | . . 1 . Hauler 2 | . . 2 . Recycler 1 | . . 1 . Mechanic 1 | . . 1 . Operator 1 | . . 1 . Swarmer 11 | . . 11 . Grunt 15 | . 5 8 2 Duelist 1 | . . 1 . Sentry 5 | . . 4 1 Best Kill Streak 5 | . 2 5 1 Combat Bots Only 5 | . 2 5 1 Max Kills in Single Turn 1 | . 1 1 1 Gunslinging . | . . . . Exploded . | . . . . Melee . | . . . . Uniques/NPCs Destroyed . | . . . . Combat | -11 -10 -9 -9 -------- Run | Yrd Mat Mat Sto Hostile Shots Fired 186 | . 25 99 62 Missed 43 | . 8 26 9 Damage Taken 1754 | . 215 849 690 Core 479 | . 77 243 159 Absorbed by Shields . | . . . . Redirected to Shielding 50 | . . 13 37 Core Remaining (%) 84 | 100 69 . . Volleys Fired 109 | . 10 87 12 Largest 3 | . 2 3 3 Hottest 108 | . 88 108 108 Shots Fired 313 | . 18 261 34 Gun 283 | . 11 250 22 Cannon 28 | . 5 11 12 Launcher . | . . . . Special 2 | . 2 . . Kinetic 283 | . 11 250 22 Thermal 30 | . 7 11 12 Explosive . | . . . . Electromagnetic . | . . . . Robot Hit Streak 15 | . 5 15 8 Robot Miss Streak 8 | . 1 8 2 Penetration Max . | . . . . Secondary Targets . | . . . . Shots Hit Robots 201 | . 24 145 32 Core Hits 80 | . 2 70 8 Critical Kills . | . . . . Critical Parts Destroyed 5 | . 3 1 1 Critical Strikes 5 | . 3 1 1 Destroy 1 | . . 1 . Smash 4 | . 3 . 1 Melee Attacks 33 | . 15 . 18 Impact 33 | . 15 . 18 Slashing . | . . . . Piercing . | . . . . Sneak Attacks . | . . . . Combat Hostiles . | . . . . Follow-up Attacks . | . . . . Damage Inflicted 2602 | . 569 1455 578 Guns 1503 | . 76 1292 135 Cannons 326 | . 42 163 121 Explosions . | . . . . Melee 773 | . 451 . 322 Ramming . | . . . . Kinetic 1503 | . 76 1292 135 Thermal 326 | . 42 163 121 Explosive . | . . . . Electromagnetic . | . . . . Impact 773 | . 451 . 322 Slashing . | . . . . Piercing . | . . . . Highest Corruption . | . . . . Average Corruption . | . . . . Corruption Purged . | . . . . Corruption Blocked . | . . . . Overload Shots . | . . . . Overflow Damage 179 | . 133 . 46 Projectiles . | . . . . Explosions . | . . . . Melee 179 | . 133 . 46 Knockbacks 8 | . 8 . . Impact 4 | . 4 . . Kinetic . | . . . . Secondary 4 | . 4 . . Self-Inflicted Damage . | . . . . Shots . | . . . . Rammed . | . . . . Targets Rammed . | . . . . Kicked . | . . . . Crushed . | . . . . Highest Temperature 268 | . 104 191 268 Average Temperature 53 | . 44 32 131 Received Heat Transfer 645 | . 123 219 303 Effects 3 | . . . 3 Interference 3 | . . . 3 Siege Activations . | . . . . Robots Corrupted . | . . . . Combat Hostiles . | . . . . Parts Fried 2 | . 2 . . Impact Corruptions 10 | . 6 . 4 Robots Melted . | . . . . Combat Hostiles . | . . . . Parts Melted . | . . . . Heat Transferred 592 | . 74 296 222 Parts Sabotaged . | . . . . Parts Stolen . | . . . . Parts Stripped . | . . . . Power Chain Reactions . | . . . . Alert | -11 -10 -9 -9 ------- Run | Yrd Mat Mat Sto Peak Influence 567 | . 190 567 350 Initial 239 | . . 79 239 Average 276 | . 75 348 292 Maximum Alert Level 2 | . . 2 1 Low Security (%) 35 | . 100 22 . Level 1 35 | . . 29 100 Level 2 28 | . . 48 . Level 3 . | . . . . Level 4 . | . . . . Level 5 . | . . . . High Security . | . . . . Max Security . | . . . . Squads Dispatched 5 | . 3 1 1 Investigation 2 | . 1 1 . Extermination . | . . . . Reinforcement 3 | . 2 . 1 Assault . | . . . . Garrison . | . . . . Intercept . | . . . . Searches Triggered . | . . . . Construction Impeded . | . . . . Haulers Reinforced . | . . . . Active Scanning Responses . | . . . . Cargo Convoy Interrupts . | . . . . Stealth | -11 -10 -9 -9 --------- Run | Yrd Mat Mat Sto Distress Signals 2 | . 1 1 . Communications Jammed . | . . . . Distress Signals . | . . . . Times Spotted 52 | . 11 34 7 Peak Tracking Total 6 | . 6 6 4 Tactical Retreats 4 | . 1 1 2 Traps | -11 -10 -9 -9 ------- Run | Yrd Mat Mat Sto Traps Triggered 1 | . 1 . . Indirectly . | . . . . Trap Hack Attempts . | . . . . Triggered . | . . . . Disarmed . | . . . . Reprogrammed . | . . . . Reused . | . . . . Traps Extracted . | . . . . Installed . | . . . . Triggered . | . . . . Machines | -11 -10 -9 -9 ---------- Run | Yrd Mat Mat Sto Machines Disabled 1 | . . . 1 Max in Single Turn 1 | . . . 1 Machines Repaired . | . . . . Machines Dismantled . | . . . . Machines Sabotaged . | . . . . Overloaded Fab Kills . | . . . . Hacking | -11 -10 -9 -9 --------- Run | Yrd Mat Mat Sto Machines Accessed 4 | . . 2 2 Terminals 3 | . . 1 2 Fabricators . | . . . . Repair Stations . | . . . . Recycling Units . | . . . . Scanalyzers 1 | . . 1 . Garrison Access . | . . . . Total Hacks 13 | . . 7 6 Successful 7 | . . 4 3 Failed 6 | . . 3 3 Catastrophic 1 | . . 1 . Database Lockouts . | . . . . Manual . | . . . . Terminals 9 | . . 3 6 Fabricators . | . . . . Repair Stations . | . . . . Recycling Units . | . . . . Scanalyzers 4 | . . 4 . Garrison Access . | . . . . Terminal Hacks 4 | . . 1 3 Prototype ID Bank 1 | . . . 1 Branch Access Points 1 | . . 1 . Alert Level 1 | . . . 1 Zone Layout 1 | . . . 1 Fabricator Hacks . | . . . . Repair Station Hacks . | . . . . Recycling Unit Hacks . | . . . . Scanalyzer 3 | . . 3 . Insert Component 2 | . . 2 . Analyze 1 | . . 1 . Garrison Access Hacks . | . . . . Unauthorized Hacks . | . . . . Terminals . | . . . . Fabricators . | . . . . Repair Stations . | . . . . Recycling Units . | . . . . Scanalyzers . | . . . . Garrison Access . | . . . . Data Cores Recovered . | . . . . Used . | . . . . Hacking Detections 3 | . . 1 2 Full Trace Events 1 | . . 1 . Feedback Events . | . . . . Feedback Blocked . | . . . . Robot Schematics Acquired . | . . . . Robots Built . | . . . . Authchips . | . . . . Time . | . . . . Total Robot Build Rating . | . . . . Part Schematics Acquired 1 | . . 1 . Parts Built . | . . . . Authchips . | . . . . Time . | . . . . Total Part Build Rating . | . . . . Parts Repaired . | . . . . Time . | . . . . Parts Recycled . | . . . . Recycled Matter . | . . . . Retrieved Matter . | . . . . Retrieved Components . | . . . . Parts Scanalyzed 1 | . . 1 . Part Schematics Acquired 1 | . . 1 . Parts Damaged 1 | . . 1 . Bothacking | -11 -10 -9 -9 ------------ Run | Yrd Mat Mat Sto Used RIF Installer . | . . . . Robots Hacked . | . . . . Non-combat . | . . . . Combat . | . . . . Robot Hacks Applied . | . . . . Relay Couplers Released . | . . . . Fabnet Peak Effective % . | . . . . Robots Rewired . | . . . . Allies Hacked . | . . . . Hacks Repelled . | . . . . Allies | -11 -10 -9 -9 -------- Run | Yrd Mat Mat Sto Total Allies . | . . . . Largest Group . | . . . . Highest-Rated Group . | . . . . Highest-Rated Ally . | . . . . Total Orders . | . . . . Ally Attacks . | . . . . Total Damage . | . . . . Kills . | . . . . Allies Corrupted . | . . . . Allies Melted . | . . . . Intel | -11 -10 -9 -9 ------- Run | Yrd Mat Mat Sto Robot Analysis Total . | . . . . Derelict Logs Recovered . | . . . . Drone Launches . | . . . . Drone Recoveries . | . . . . Exploration | -11 -10 -9 -9 ------------- Run | Yrd Mat Mat Sto Turns Passed 1185 | . 269 710 206 Spaces Moved 574 | 1 163 323 87 Core 3 | . . 3 . Treads . | . . . . Legs 24 | 1 23 . . Wheels 547 | . 140 320 87 Hover . | . . . . Flight . | . . . . Fastest Speed 95 | 120 100 95 100 Average Speed 106 | 120 102 109 100 Slowest Speed 650 | 120 120 650 100 Overloaded Moves . | . . . . Propulsion Burnouts . | . . . . Robots Hopped . | . . . . Cave-ins Triggered . | . . . . Exploration Rate (%) 22 | 2 33 34 21 Regions Visited 3 Branch Regions 1 Pre-discovered Areas . | . . . . Known Exits Taken 1 | . . 1 . Unknown Exits Taken 2 | 1 1 . . Scrap Searched . | . . . . Spaces Dug . | . . . . Terrain Destroyed . | . . . . Melee . | . . . . Projectile . | . . . . AOE . | . . . . Terrain Rammed . | . . . . Walls Destroyed . | . . . . Machines Disabled . | . . . . Actions | -11 -10 -9 -9 --------- Run | Yrd Mat Mat Sto Total 892 | . 215 525 152 Wait 131 | . 15 87 29 Move 571 | . 162 322 87 Hop . | . . . . Pick Up 8 | . 3 4 1 Fast Attach 9 | . 2 7 . Attach 9 | . 2 6 1 Detach 2 | . 1 1 . Swap 12 | . 3 6 3 Drop 8 | . 2 5 1 Fire 109 | . 10 87 12 Melee 33 | . 15 . 18 Ram . | . . . . Kick . | . . . . Crush . | . . . . Escape Stasis . | . . . . Rewire . | . . . . Trap . | . . . . Miscellaneous . | . . . . Route ------- -11/Scrapyard -10/Materials -9/Materials (discovered 2 exits: Min / *Sto) -9/Storage History --------- Turn | Location | Event 1 | -11/Scrapyard | Discovered new exit (range 0) 1 | -11/Scrapyard | Entered Materials 209 | -10/Materials | Discovered new exit (range 15) 270 | -10/Materials | Entered another Materials area 270 | -9/Materials | Evolved 2 slots: Utility x1, Weapon x1 388 | -9/Materials | Identified exit to Mines 388 | -9/Materials | Identified exit to Storage 583 | -9/Materials | Build established: Tank 750 | -9/Materials | Core integrity fell below 50% 777 | -9/Materials | Lost 3 parts (1n2w) 980 | -9/Materials | Entered Storage 1175 | -9/Storage | Core integrity fell below 20% 1186 | -9/Storage | Destroyed by Y-45 Defender with Heavy Assault Rifle Last Messages --------------- 01135_ Imp. Ion Engine destroyed. 01139_ Lgt. Assault Rifle destroyed. 01149_ Destroyed Heat Sink. 01149_ Destroyed Aluminum Leg. 01149_ G-34 Mercenary system corrupted by crushing effect. 01150_ G-34 Mercenary system terminally corrupted. 01151_ Acquired 1 matter. 01154_ Dropped Lgt. Ion Engine. 01171_ Arm. Wheel destroyed. 01175_ R-06 Scavenger collects Lgt. Ion Engine. 01179_ ALERT: Hostiles spotted, dispatching reinforcements to Terminal S006. 01180_ Power Shielding destroyed. 01180_ Lgt. Ion Engine destroyed. 01180_ Wheel destroyed. 01184_ Destroyed Heat Sink. 01184_ Y-45 Defender system corrupted by crushing effect. Map ----- +----------------------------------------------------+ | ???????????????????????????????????????????????? | | ???????????????????????????????????????????????? | | ???????????????????????????????????????????????? | | ???????????????????????????????????????????????? | | ???????????????????????????????????????????????? | | ???????????????????????????????????????????????? | | ???????????????????????????????????????????????? | | ????????????????????????? + + | | ????????????????????????? # ##### ########## | | ????????????????????????? # #####+######## | | ???????????????????????####?### ## ? ? | | ???????????????????????# ## ## """ #### | | ??????????????????????? """ ## ## """ #??# | | ??????????????????????## """ + # """ #??# | | ??????????????????????#" """ ## + #??# | | ??????????????????????#" ## # """ #??# | | ??????????????????????#" """ ## # """ #####+ | | ??????????????????????#T """ ## # """ + | | ?????????????????##???#" """ ## # ##### | | ????????????###### ???#" ## ###"T"## #???# | | ????????????# ??#" ## #?########???# | | ????????????# ???# ## #????#"""#???# | | ????????????? ??#Y ## ##??##"T"##### | | ????????????? ?##/##/## #??# # | | ?????????????? # r #### """ # | | ???????????????"" """ #@ % + """ # | | ???????????????"" """ Y ##### #### """ # | | ???????????????"" """ # #???###+##### + | | ???????????????######## ##????#% # """ # | | ?????????????????????? ###### """ # """ ## | | ????????????????????? # """ # """ #? | | ???????????????????? T + """ # #? | | ???????????????????#?# ###### """ ####"T"###? | | ?????????????????????######????# """ #??#"""#??? | | ???????????????????????????????# #??#####??? | | ???????????????????????????????#! #?????????? | | ???????????????????????????????#### ##?????????? | | ??????????????????????????????????###??????????? | | | | | | | | | | | | | | | | | | | | | | | | | +----------------------------------------------------+ Best States ------------- Heat Dissipation 28 Energy Generation 12 Energy Capacity 265 Matter Stores 300 Matter Capacity 300 Sight Range 16 Terrain Scan Density 10 Armor Coverage 150 Power Shielding 33 Evasion (%) 55 Item Schematics ----------------- Imp. Assault Rifle | -9/Materials | Scanalyzed Robot Schematics ------------------ None Fabricated ------------ Nothing Alien Tech Used ----------------- None Achievements -------------- None Challenges ------------ None Game ------ Seed LayeredFlyingMultirail Manual? 0 Play Time 00:18:13 Cumulative 30.3 hours Start 2024.05.24 @ 14:41:58 End 2024.05.24 @ 15:45:07 Sessions 3 Manual Loads 0 Difficulty Rogue Special Mode None Game No. 113 Rogue 113 Adventurer 0 Explorer 0 Win Type - Total 0 Types 0/0/0/0/0/0/0/0/0 Lore% 19 Gallery% 24 Achievement% 22 Wizard Run 0 Options --------- Layout 1 ASCII 0 Keyboard 0 Movement Mouse Keybinds 0 Fullscreen 1 Font 24/Smallcaps Map View 50x35 Zoom Use 0% Tactical HUD 1 Map Filters NONE Filters NONE Steam 1 RUN: 76215c69-bd94-46d9-839c-f744b52996fe